[Event "CCT Chesscom Classic-D1 2024"]
[Site "Online"]
[Date "2024.05.11"]
[Round "2"]
[White "Carlsen, Magnus"]
[Black "Lazavik, Denis"]
[Result "1-0"]
[ECO "E05"]
[WhiteElo "2830"]
[BlackElo "2572"]
[Annotator "TA"]
[PlyCount "139"]
[EventDate "2024.05.08"]
[EventType "k.o."]
[EventCountry "NET"]
[SourceTitle "playchess.com"]
[Source "ChessBase"]
[SourceQuality "1"]
[TimeControl "600+2"]

{[%evp 40,139,70,76,83,80,85,82,86,86,86,86,86,86,86,86,86,86,152,86,86,86,86,86,86,86,86,79,86,86,86,72,86,72,72,72,86,0,72,0,86,72,72,72,72,72,72,72,86,72,86,16,16,16,55,55,55,55,55,55,55,55,55,55,55,55,294,287,294,280,316,300,322,321,346,327,301,0,231,231,231,68,29959,29960,29951,29950,29963,29960,29966,29967,29966,29968,29970,29970,29970,29968,29981,29982,29982,29983,29983,29984]} 1. d4 {[%emt 0:00:12]} Nf6 {[%emt 0:00:06]} 2. c4 {[%emt 0:00:01]} e6 {[%emt 0:00:01]} 3. Nf3 {[%emt 0:00:00]} d5 {[%emt 0:00:01]} 4. g3 {[%emt 0:00:00]} Be7 {[%emt 0:00:10]} 5. Bg2 {[%emt 0:00:02]} O-O {[%emt 0:00:01]} 6. O-O {[%emt 0:00:00]} dxc4 {[%emt 0:00:01]} 7. h4 {[%emt 0:00:02] E05: Open Catalan: 5 Nf3 Be7.} c5 {[%emt 0:01:47]} 8. dxc5 {[%emt 0:00:22]} Bxc5 $146 {[%emt 0:00:02]} ({Predecessor:} 8... Qxd1 9. Rxd1 Bxc5 10. Ne5 Nc6 11. Nxc4 Nd5 12. Nc3 Nxc3 13. bxc3 e5 14. Rd5 Be7 15. Nxe5 Nxe5 16. Rxe5 {1-0 Van Foreest,J (2707)-Kryvoruchko,Y (2656) EU-Cup 38th Durres 2023 (4.4)}) 9. Qc2 {[%emt 0:00:15]} Nbd7 {[%emt 0:00:57]} 10. Nc3 {[%emt 0:01:36]} Qc7 {[%emt 0:01:30]} 11. Bf4 {[%emt 0:02:12]} e5 {[%emt 0:00:03]} 12. Bd2 {[%emt 0:00:00]} h6 {[%emt 0:00:59]} 13. a4 {[%emt 0:00:02]} a6 {[%emt 0:00:47]} 14. Ne4 {[%emt 0:00:07]} Nxe4 {[%emt 0:00:17]} 15. Qxe4 {[%emt 0:00:00]} Rb8 {[%emt 0:00:11]} 16. a5 {[%emt 0:00:02]} b5 {[%emt 0:00:18]} 17. axb6 {[%emt 0:00:04]} Qxb6 {[%emt 0:00:01]} 18. Bc3 {[%emt 0:00:21]} Bb7 {[%emt 0:00:09]} 19. Qf5 {[%emt 0:00:02]} e4 {[%emt 0:00:41]} 20. Qxd7 {[%emt 0:01:00]} exf3 {[%emt 0:00:02]} 21. Qg4 $1 {[%emt 0:00:10]} (21. Bxf3 Bxf3 22. exf3 Bb4 $11) (21. exf3 Rfd8 22. Qg4 Bd4 $11) 21... Qg6 {[%emt 0:00:19]} 22. Bxf3 {[%emt 0:00:02]} (22. Qxc4 Qxg3 (22... fxg2 $2 23. Qxc5 gxf1=B 24. Kxf1 $19) 23. exf3 Bxf3) 22... Bxf3 {[%emt 0:00:21]} 23. exf3 {[%emt 0:00:04]} ({Of course not} 23. Qxf3 Bb4 $11) 23... Qxg4 {[%emt 0:01:05]} 24. fxg4 {[%emt 0:00:02]} Bb4 {[%emt 0:00:00]} 25. Rxa6 {[%emt 0:00:04]} Bxc3 {[%emt 0:00:04]} 26. bxc3 {[%emt 0:00:00]} Rb3 {[%emt 0:00:01]} 27. Rc1 {[%emt 0:00:01]} Re8 {[%emt 0:00:01]} 28. Kg2 {[%emt 0:00:39]} Re2 {[%emt 0:00:04]} ({Black should play} 28... Rb2) 29. Rc6 {[%emt 0:00:02]} (29. Ra8+ $142 $1 Kh7 30. Ra7) 29... Rbb2 $16 {[%emt 0:00:01]} 30. Rf1 {[%emt 0:00:02]} ({And not} 30. Rxc4 Rxf2+ 31. Kg1 Rg2+ 32. Kf1 Rbf2+ (32... Rxg3 33. h5 $17) 33. Ke1 Rf3 34. Rc8+ Kh7 $17) 30... Rec2 {[%emt 0:00:27]} 31. Rc8+ {[%emt 0:00:50]} Kh7 {[%emt 0:00:01]} 32. Rxc4 {[%emt 0:00:00]} Rb3 {[%emt 0:00:05]} 33. Rf4 {[%emt 0:00:08]} f6 {[%emt 0:00:07]} 34. Ra1 {[%emt 0:00:28]} Rbxc3 {[%emt 0:00:02]} 35. Raa4 {[%emt 0:00:01]} Rc7 {[%emt 0:00:01]} 36. Rfe4 {[%emt 0:00:05]} Rd7 {[%emt 0:00:05]} 37. Ra5 {[%emt 0:00:08]} Rcd2 {[%emt 0:00:07]} 38. Raa4 {[%emt 0:00:16]} Rc2 $1 {[%emt 0:00:01]} 39. Rf4 {[%emt 0:00:02]} (39. Rad4 $16 Rxd4 40. Rxd4) 39... Rcd2 {[%emt 0:00:03]} (39... Rdc7 $1 $11) 40. Rfb4 {[%emt 0:00:12]} Re2 {[%emt 0:00:03]} 41. Rb8 {[%emt 0:00:08]} Rdd2 {[%emt 0:00:02]} 42. Rf4 {[%emt 0:00:01]} Re7 {[%emt 0:00:02]} 43. Rb5 {[%emt 0:00:04]} Red7 {[%emt 0:00:03]} 44. Rff5 {[%emt 0:00:05]} Kg6 {[%emt 0:00:07]} 45. g5 {[%emt 0:00:09]} (45. h5+ $16 Kh7 46. Ra5) 45... hxg5 $11 {[%emt 0:00:01]} 46. hxg5 {[%emt 0:00:00]} Re7 {[%emt 0:00:01]} 47. gxf6 {[%emt 0:00:07]} gxf6 {[%emt 0:00:01]} 48. Rf4 {[%emt 0:00:00]} Rd6 {[%emt 0:00:09]} 49. Rg4+ {[%emt 0:00:01]} Kf7 {[%emt 0:00:01]} 50. Rh5 {[%emt 0:00:02]} Re2 {[%emt 0:00:01]} 51. Rh7+ {[%emt 0:00:04]} Ke6 {[%emt 0:00:01]} 52. Rf4 {[%emt 0:00:00]} Ra2 $2 {[%emt 0:00:02] [#]} ({Black should try} 52... Red2 $1 $14) 53. g4 $1 $18 {[%emt 0:00:04]} Ra5 {[%emt 0:00:05]} 54. Kg3 {[%emt 0:00:04]} Re5 {[%emt 0:00:01]} 55. Ra4 {[%emt 0:00:09]} Rd3+ {[%emt 0:00:03]} 56. f3 {[%emt 0:00:08]} Ree3 {[%emt 0:00:02]} 57. Ra6+ {[%emt 0:00:02]} Rd6 {[%emt 0:00:02]} 58. Ra4 {[%emt 0:00:23]} Rdd3 $1 {[%emt 0:00:02] [#]} 59. Rf4 $1 {[%emt 0:00:00]} Rd6 {[%emt 0:00:03]} 60. Rf5 $2 {[%emt 0:00:08]} ({Better is} 60. Rh6 $18 Ke7 61. Rb4) 60... Re5 $2 {[%emt 0:00:01][%mdl 8192]} (60... Rd5 $14) 61. Rxe5+ {[%emt 0:00:01]} Kxe5 {[%emt 0:00:01]} 62. f4+ {[%emt 0:00:00]} Ke6 {[%emt 0:00:06]} 63. f5+ {[%emt 0:00:01]} Ke5 {[%emt 0:00:01]} 64. Re7+ {[%emt 0:00:01]} Kd5 {[%emt 0:00:01]} 65. g5 {[%emt 0:00:01]} fxg5 {[%emt 0:00:03]} 66. Kg4 {[%emt 0:00:01]} Rd8 {[%emt 0:00:05]} 67. f6 {[%emt 0:00:08]} Rg8 {[%emt 0:00:01]} 68. f7 {[%emt 0:00:04]} Rf8 {[%emt 0:00:02]} 69. Kxg5 {[%emt 0:00:00]} Kd6 {[%emt 0:00:00]} 70. Kf6 {[%emt 0:00:00]} 1-0

[Event "CCT Chesscom Classic-D1 2024"]
[Site "Online"]
[Date "2024.05.11"]
[Round "2"]
[White "Duda, Jan-Krzysztof"]
[Black "Keymer, Vincent"]
[Result "0-1"]
[ECO "A29"]
[WhiteElo "2734"]
[BlackElo "2726"]
[Annotator "TA"]
[PlyCount "98"]
[EventDate "2024.05.08"]
[EventType "k.o."]
[EventCountry "NET"]
[SourceTitle "playchess.com"]
[Source "ChessBase"]
[SourceQuality "1"]
[TimeControl "600+2"]

{[%evp 10,98,15,8,16,9,8,0,0,-11,-25,-27,-12,-12,-25,-40,56,37,46,42,47,55,60,68,60,59,73,10,39,-4,-21,-20,0,0,-23,-51,-27,-58,-17,-106,-15,-88,0,-87,-81,-74,0,0,0,0,0,0,0,-47,-52,-66,-56,-56,-56,-155,-156,-163,-165,-152,-22,-25,-22,-27,-31,-31,-25,-29,-12,-276,-271,-356,-356,-356,-335,-416,-403,-793,-776,-6923,-5350,-12802,-6814,-29988,-29986,-29986,-29987]} 1. c4 {[%emt 0:00:03]} Nf6 {[%emt 0:00:04]} 2. Nc3 {[%emt 0:00:01]} e5 {[%emt 0:00:01]} 3. Nf3 {[%emt 0:00:02]} Nc6 {[%emt 0:00:01]} 4. g3 {[%emt 0:00:00]} Bb4 {[%emt 0:00:01]} 5. Bg2 {[%emt 0:00:02]} O-O {[%emt 0:00:02]} 6. Nd5 {[%emt 0:00:02]} e4 {[%emt 0:00:06]} 7. Nh4 {[%emt 0:00:02]} d6 {[%emt 0:00:13]} 8. O-O {[%emt 0:00:06]} g5 {[%emt 0:00:07] The position is equal.} 9. d4 $1 {[%emt 0:00:08]} h6 {[%emt 0:00:19]} 10. Nxb4 {[%emt 0:00:03]} Nxb4 {[%emt 0:00:07]} 11. f3 {[%emt 0:00:00][%cal Of3e4]} gxh4 {[%emt 0:00:24]} 12. Bxh6 {[%emt 0:00:26] [#]} h3 {[%emt 0:00:33]} 13. Bh1 $14 {[%emt 0:00:07]} e3 {[%emt 0:00:33] Prevents Qd2.} 14. Qb3 $1 {[%emt 0:00:53][%cal Oh6f8]} a5 {[%emt 0:01:05]} 15. Qxe3 {[%emt 0:00:53]} Nh7 {[%emt 0:00:20] Inhibits Qg5+.} 16. Bxf8 {[%emt 0:00:06]} Qxf8 {[%emt 0:00:04]} 17. Qd2 {[%emt 0:00:04] Inhibits Nc2.} Qg7 {[%emt 0:00:08]} 18. a3 {[%emt 0:01:54]} (18. f4 $16) 18... Nc6 $11 {[%emt 0:00:03]} 19. Rfd1 {[%emt 0:00:01]} a4 {[%emt 0:01:04]} 20. Rac1 {[%emt 0:00:03]} f5 {[%emt 0:00:08][%mdl 1024] Black has compensation.} 21. Rc3 {[%emt 0:00:52]} Bd7 {[%emt 0:00:07]} 22. Qf4 {[%emt 0:01:15]} Nf6 {[%emt 0:00:56]} 23. Qh4 {[%emt 0:00:22] White is weak on the light squares} Re8 {[%emt 0:00:05]} 24. Kf1 {[%emt 0:00:09]} (24. e3 $11) 24... Nh7 {[%emt 0:00:23] Black is more active.} ({Black should try} 24... b5 $17 {...Na5 is the strong threat.} 25. cxb5 Ne7) 25. c5 {[%emt 0:00:43] [#]} (25. Rdd3 $11) 25... d5 {[%emt 0:00:12]} (25... Nf6 $1 $17 26. d5 (26. cxd6 cxd6 27. Rcc1 Qg6 $17) 26... Ne5) 26. f4 {[%emt 0:00:08]} (26. Kf2 $11 {keeps the balance.}) 26... Nf6 $17 {[%emt 0:00:27]} (26... Nxd4 27. Bxd5+ Kf8 28. Rcd3 $16) 27. Qxh3 {[%emt 0:00:06]} Ne4 {[%emt 0:00:15]} (27... Na5 $17 28. Bf3 Nc4) 28. Bxe4 $11 {[%emt 0:00:11]} Rxe4 {[%emt 0:00:24]} ({Much weaker is} 28... dxe4 $6 29. d5 Ne7 30. d6 cxd6 31. cxd6 $16) 29. e3 {[%emt 0:00:06]} Ne7 {[%emt 0:00:13]} 30. Qh5 {[%emt 0:00:32]} Kf8 {[%emt 0:00:14]} 31. b3 {[%emt 0:00:28]} (31. Kg1 $11) 31... axb3 {[%emt 0:00:31]} 32. Rxb3 {[%emt 0:00:00]} Be8 {[%emt 0:00:01]} 33. Qe2 {[%emt 0:00:07]} Ba4 {[%emt 0:00:05]} 34. Rxb7 {[%emt 0:00:01]} (34. Rdb1 $15 Bxb3 35. Rxb3) 34... Bxd1 $17 {[%emt 0:00:01]} 35. Qxd1 {[%emt 0:00:05]} Rxe3 {[%emt 0:00:20]} 36. Qh5 {[%emt 0:00:04] White threatens Rb8+ and mate.} Qg6 {[%emt 0:00:42]} ({And not} 36... Rxa3 37. Rb8+ (37. Rxc7 Qxd4 38. Qh6+ Ke8 $11) (37. Rxc7 Qxd4 38. Qh6+ Ke8 $17)) (36... Qg4 $17 37. Qxg4 fxg4 38. Rxc7 Rxa3) 37. Qxg6 $11 {[%emt 0:00:16]} Nxg6 {[%emt 0:00:01]} 38. Rxc7 {[%emt 0:00:05]} Rxa3 {[%emt 0:00:03][%mdl 4096] Endgame. KRN-KR} 39. Rd7 {[%emt 0:00:47]} Ne7 {[%emt 0:00:01]} 40. Kg2 {[%emt 0:00:02]} Ra4 {[%emt 0:00:11]} 41. Kh3 $2 {[%emt 0:00:04][%mdl 8192] This costs White the game.} (41. h4 $1 $11 {and White is okay.}) 41... Rxd4 $19 {[%emt 0:00:07]} 42. Kh4 {[%emt 0:00:01]} Rc4 {[%emt 0:00:05]} 43. Kg5 {[%emt 0:00:03]} Rxc5 {[%emt 0:00:03]} 44. h4 {[%emt 0:00:03]} Kf7 {[%emt 0:00:03] ...Rc3 would now be deadly.} 45. g4 {[%emt 0:00:03]} (45. h5 $142) 45... Rc3 {[%emt 0:00:10] And now ...Rg3 would win.} 46. gxf5 {[%emt 0:00:02]} Rg3+ {[%emt 0:00:01]} 47. Kh6 {[%emt 0:00:03]} Kf6 {[%emt 0:00:04]} 48. Kh7 {[%emt 0:00:02]} Rh3 {[%emt 0:00:05][%cal Rh3h4]} 49. Rd6+ {[%emt 0:00:00]} Kf7 {[%emt 0:00:01] Weighted Error Value: White=0.53/Black=0.28 (precise) .  Loses game:     	White=1     	---        Mistake:       	White=7     	Black=5      Inaccurate:     	White=5     	Black=1      OK:         	White=12    	Black=14     Best:        	White=4     	Black=7      Strong:       	White=2     	---} 0-1

[Event "CCT Chesscom Classic-D1 2024"]
[Site "Online"]
[Date "2024.05.11"]
[Round "2"]
[White "Keymer, Vincent"]
[Black "Duda, Jan-Krzysztof"]
[Result "1/2-1/2"]
[ECO "A13"]
[WhiteElo "2726"]
[BlackElo "2734"]
[Annotator "TA"]
[PlyCount "134"]
[EventDate "2024.05.08"]
[EventType "k.o."]
[EventCountry "NET"]
[SourceTitle "playchess.com"]
[Source "ChessBase"]
[SourceQuality "1"]
[TimeControl "600+2"]

{[%evp 50,134,35,20,20,20,23,11,10,11,40,39,51,8,8,8,8,0,0,0,0,0,0,0,0,0,64,64,64,64,64,64,64,64,64,64,64,64,64,64,64,64,64,64,64,64,64,64,64,64,64,64,64,64,64,64,64,64,64,64,64,64,64,64,64,64,64,64,64,64,64,54,54,54,54,54,54,24,24,12,12,12,12,12,12,12,12]} 1. Nf3 {[%emt 0:00:04]} Nf6 {[%emt 0:00:06]} 2. c4 {[%emt 0:00:01]} e6 {[%emt 0:00:01]} 3. Nc3 {[%emt 0:00:01]} d5 {[%emt 0:00:01]} 4. e3 {[%emt 0:00:00]} Be7 {[%emt 0:00:02]} 5. b3 {[%emt 0:00:05]} O-O {[%emt 0:00:02]} 6. Bb2 {[%emt 0:00:01]} c5 {[%emt 0:00:04]} 7. cxd5 {[%emt 0:00:00]} exd5 {[%emt 0:00:00]} 8. d4 {[%emt 0:00:02] A13: English Opening: 1...e6.} Nc6 {[%emt 0:00:01]} 9. Be2 {[%emt 0:00:03]} Ne4 {[%emt 0:00:03]} 10. dxc5 {[%emt 0:00:01]} Qa5 {[%emt 0:00:07] is the new trend.} 11. Rc1 {[%emt 0:00:01]} Bf6 {[%emt 0:00:02]} 12. Nd4 {[%emt 0:00:02]} Nxc5 {[%emt 0:00:01]} 13. Nxc6 {[%emt 0:00:00]} bxc6 {[%emt 0:00:00]} 14. O-O {[%emt 0:00:01]} Ne4 {[%emt 0:00:06]} 15. Qc2 {[%emt 0:00:01]} Nxc3 {[%emt 0:00:01]} 16. Bxc3 {[%emt 0:00:00]} Bxc3 {[%emt 0:00:03]} 17. Qxc3 {[%emt 0:00:00]} Qxa2 {[%emt 0:00:05]} 18. Rc2 {[%emt 0:00:01]} Qa3 {[%emt 0:00:00]} 19. Ra1 {[%emt 0:00:01]} Qe7 {[%emt 0:00:01]} 20. Qxc6 {[%emt 0:00:01]} Be6 {[%emt 0:00:05]} 21. Qc5 {[%emt 0:00:09]} Qxc5 {[%emt 0:00:53]} 22. Rxc5 {[%emt 0:00:00]} Rab8 {[%emt 0:00:48]} 23. Rb5 {[%emt 0:00:12]} Rxb5 {[%emt 0:00:14]} 24. Bxb5 {[%emt 0:00:00]} Rb8 {[%emt 0:00:21]} 25. Rxa7 {[%emt 0:00:12]} Kf8 $146 {[%emt 0:00:05]} ({Predecessor:} 25... g6 26. Ra5 d4 27. exd4 Bxb3 28. f3 Rd8 29. Ra3 Bd1 30. Kf2 Rxd4 31. Rd3 {½-½ Duda,J (2758)-Predke,A (2676) Wch Rapid Moscow 2019 (7)}) 26. Ba4 {[%emt 0:00:45]} d4 {[%emt 0:00:07]} 27. exd4 {[%emt 0:00:27]} Bxb3 {[%emt 0:00:05]} 28. h3 {[%emt 0:01:25]} Bxa4 {[%emt 0:00:34]} 29. Rxa4 {[%emt 0:00:03]} Rb1+ {[%emt 0:00:32]} 30. Kh2 {[%emt 0:00:01]} Rb3 {[%emt 0:00:07]} 31. g3 {[%emt 0:00:20]} h5 {[%emt 0:00:04]} 32. Kg2 {[%emt 0:00:16]} g6 {[%emt 0:00:18]} 33. h4 {[%emt 0:00:08]} Ke7 {[%emt 0:00:02]} 34. Kf1 {[%emt 0:00:14]} Rb2 {[%emt 0:00:07]} 35. Ke1 {[%emt 0:00:11]} Ke6 {[%emt 0:00:05]} 36. Ra6+ {[%emt 0:00:11]} Kd5 {[%emt 0:00:05]} 37. Ra7 {[%emt 0:00:09]} Kxd4 {[%emt 0:00:17]} (37... Ke6 $11) 38. Rxf7 $14 {[%emt 0:00:03]} Ke5 {[%emt 0:00:00]} 39. Rf4 {[%emt 0:00:10]} Ra2 {[%emt 0:00:03]} 40. Kf1 {[%emt 0:00:01]} Ke6 {[%emt 0:00:09]} 41. Kg2 {[%emt 0:00:02]} Ra3 {[%emt 0:00:01]} 42. Rf3 {[%emt 0:00:02]} Ra4 {[%emt 0:00:01]} 43. Rf8 {[%emt 0:00:05]} Ke7 {[%emt 0:00:02]} 44. Rc8 {[%emt 0:00:19]} Ra3 {[%emt 0:00:05]} 45. Rc4 {[%emt 0:00:05]} (45. Rc6 $5 Kf7 $8 46. Rd6 $11) 45... Kf6 {[%emt 0:00:02]} 46. Re4 {[%emt 0:00:00]} Rb3 {[%emt 0:00:02]} 47. Re3 {[%emt 0:00:01]} Rb5 {[%emt 0:00:02]} 48. Ra3 {[%emt 0:00:02]} Kg7 {[%emt 0:00:03]} 49. Kf3 {[%emt 0:00:01]} Rf5+ {[%emt 0:00:01]} 50. Ke3 {[%emt 0:00:01]} Re5+ {[%emt 0:00:01]} 51. Kd4 {[%emt 0:00:09]} Re2 {[%emt 0:00:05]} 52. Rf3 {[%emt 0:00:01]} Kg8 {[%emt 0:00:03]} 53. Kd3 {[%emt 0:00:01]} Ra2 {[%emt 0:00:02]} 54. Ke4 {[%emt 0:00:06]} Kg7 {[%emt 0:00:04]} 55. Rf4 {[%emt 0:00:04]} Re2+ {[%emt 0:00:05]} 56. Kf3 {[%emt 0:00:02]} Ra2 {[%emt 0:00:01]} 57. Rd4 {[%emt 0:00:02]} Kf6 {[%emt 0:00:02]} 58. Ke3 {[%emt 0:00:01]} Ra6 {[%emt 0:00:06]} 59. Kf4 {[%emt 0:00:04]} Rb6 {[%emt 0:00:02]} 60. f3 {[%emt 0:00:01]} Ra6 {[%emt 0:00:01]} 61. Rc4 {[%emt 0:00:05]} Rb6 {[%emt 0:00:02]} 62. Ra4 {[%emt 0:00:01]} Rc6 {[%emt 0:00:00]} 63. g4 {[%emt 0:00:03]} hxg4 $1 {[%emt 0:00:02]} 64. fxg4 {[%emt 0:00:00]} g5+ {[%emt 0:00:01]} 65. hxg5+ {[%emt 0:00:01]} Kg6 {[%emt 0:00:01]} 66. Ra5 {[%emt 0:00:06]} Rc4+ {[%emt 0:00:02]} 67. Kg3 {[%emt 0:00:00]} Rc1 {[%emt 0:00:01]} 1/2-1/2

[Event "CCT Chesscom Classic-D1 2024"]
[Site "Online"]
[Date "2024.05.11"]
[Round "2"]
[White "Keymer, Vincent"]
[Black "Duda, Jan-Krzysztof"]
[Result "1-0"]
[ECO "E62"]
[WhiteElo "2726"]
[BlackElo "2734"]
[Annotator "ChessBase"]
[PlyCount "147"]
[EventDate "2024.05.08"]
[EventType "k.o."]
[EventCountry "NET"]
[SourceTitle "playchess.com"]
[Source "ChessBase"]
[SourceQuality "1"]
[TimeControl "600+2"]

1. Nf3 {[%emt 0:00:03]} Nf6 {[%emt 0:00:04]} 2. c4 {[%emt 0:00:01]} g6 {[%emt 0:00:00]} 3. Nc3 {[%emt 0:00:07]} Bg7 {[%emt 0:00:01]} 4. g3 {[%emt 0:00:00]} O-O {[%emt 0:00:04]} 5. Bg2 {[%emt 0:00:01]} d6 {[%emt 0:00:16]} 6. d4 {[%emt 0:00:02]} c6 {[%emt 0:00:02]} 7. e4 {[%emt 0:00:02]} Qa5 {[%emt 0:01:37]} 8. O-O {[%emt 0:00:09]} Be6 {[%emt 0:00:02]} 9. Qd3 {[%emt 0:02:45]} Qa6 {[%emt 0:00:34]} 10. d5 {[%emt 0:00:15]} Bg4 {[%emt 0:00:09]} 11. Nd4 {[%emt 0:00:02]} Nfd7 {[%emt 0:01:21]} 12. b3 {[%emt 0:02:48]} Nc5 {[%emt 0:00:03]} 13. Qd2 {[%emt 0:00:18]} Qb6 {[%emt 0:00:01]} 14. Bb2 {[%emt 0:00:13]} a5 {[%emt 0:00:03]} 15. h3 {[%emt 0:00:07]} Bd7 {[%emt 0:00:03]} 16. Nce2 {[%emt 0:00:24]} a4 {[%emt 0:00:58]} 17. Rfb1 {[%emt 0:00:36]} Nba6 {[%emt 0:01:52]} 18. Bc3 {[%emt 0:00:12]} Bxh3 {[%emt 0:00:09]} 19. b4 {[%emt 0:00:14]} Bxg2 {[%emt 0:00:04]} 20. bxc5 {[%emt 0:00:01]} Qxc5 {[%emt 0:00:00]} 21. Kxg2 {[%emt 0:00:03]} Qxc4 {[%emt 0:00:00]} 22. Nf3 {[%emt 0:00:28]} Bxc3 {[%emt 0:01:41]} 23. Nxc3 {[%emt 0:00:05]} Nc5 {[%emt 0:00:00]} 24. Rh1 {[%emt 0:00:31]} f6 {[%emt 0:00:03]} 25. Rh4 {[%emt 0:00:05]} e5 {[%emt 0:00:30]} 26. Rah1 {[%emt 0:00:51]} Rf7 {[%emt 0:00:03]} 27. dxc6 {[%emt 0:00:21]} bxc6 {[%emt 0:00:04]} 28. Rc1 {[%emt 0:00:01]} Qe6 {[%emt 0:00:07]} 29. Qh6 {[%emt 0:00:03]} Rg7 {[%emt 0:00:12]} 30. Rb1 {[%emt 0:00:02]} d5 {[%emt 0:00:12]} 31. exd5 {[%emt 0:00:07]} cxd5 {[%emt 0:00:00]} 32. Rhb4 {[%emt 0:00:01]} Rf8 {[%emt 0:00:30]} 33. Rb8 {[%emt 0:00:01]} d4 {[%emt 0:00:12]} 34. Rxf8+ {[%emt 0:00:03]} Kxf8 {[%emt 0:00:00]} 35. Rb8+ {[%emt 0:00:01]} Kf7 {[%emt 0:00:01]} 36. Nxa4 {[%emt 0:00:06]} Nd7 {[%emt 0:00:00]} 37. Rb7 {[%emt 0:00:03]} Qc6 {[%emt 0:00:04]} 38. Nc5 {[%emt 0:00:00]} Kg8 {[%emt 0:00:05]} 39. Rxd7 {[%emt 0:00:03]} Rxd7 {[%emt 0:00:02]} 40. Nxd7 {[%emt 0:00:02]} Qxd7 {[%emt 0:00:00]} 41. Qd2 {[%emt 0:00:01]} Qd5 {[%emt 0:00:03]} 42. Qb2 {[%emt 0:00:03]} Kg7 {[%emt 0:00:04]} 43. Qb3 {[%emt 0:00:02]} Qe4 {[%emt 0:00:05]} 44. Kg1 {[%emt 0:00:02]} d3 {[%emt 0:00:01]} 45. Qd1 {[%emt 0:00:03]} Qd5 {[%emt 0:00:04]} 46. a4 {[%emt 0:00:02]} e4 {[%emt 0:00:02]} 47. Nd2 {[%emt 0:00:01]} h5 {[%emt 0:00:04]} 48. Nf1 {[%emt 0:00:03]} Qa5 {[%emt 0:00:03]} 49. Qa1 {[%emt 0:00:02]} g5 {[%emt 0:00:02]} 50. Qd4 {[%emt 0:00:01]} Qf5 {[%emt 0:00:02]} 51. a5 {[%emt 0:00:02]} h4 {[%emt 0:00:00]} 52. a6 {[%emt 0:00:02]} h3 {[%emt 0:00:04]} 53. Nd2 {[%emt 0:00:01]} Qa5 {[%emt 0:00:03]} 54. Nxe4 {[%emt 0:00:03]} Qxa6 {[%emt 0:00:01]} 55. Kh2 {[%emt 0:00:01]} Kg6 {[%emt 0:00:03]} 56. Kxh3 {[%emt 0:00:02]} f5 {[%emt 0:00:01]} 57. Nc5 {[%emt 0:00:02]} Qc6 {[%emt 0:00:01]} 58. Kh2 {[%emt 0:00:01]} d2 {[%emt 0:00:01]} 59. Nb3 {[%emt 0:00:01]} d1=Q {[%emt 0:00:05]} 60. Qxd1 {[%emt 0:00:01]} Qb6 {[%emt 0:00:01]} 61. Nd4 {[%emt 0:00:02]} Kf6 {[%emt 0:00:01]} 62. Qd3 {[%emt 0:00:00]} Qc5 {[%emt 0:00:01]} 63. Qe3 {[%emt 0:00:02]} Qd5 {[%emt 0:00:00]} 64. Nf3 {[%emt 0:00:01]} g4 {[%emt 0:00:05]} 65. Nh4 {[%emt 0:00:02]} Qb5 {[%emt 0:00:04]} 66. Qh6+ {[%emt 0:00:02]} Ke7 {[%emt 0:00:01]} 67. Qg7+ {[%emt 0:00:01]} Kd8 {[%emt 0:00:01]} 68. Qf6+ {[%emt 0:00:01]} Kc7 {[%emt 0:00:00]} 69. Qxf5 {[%emt 0:00:01]} Qe2 {[%emt 0:00:01]} 70. Qf4+ {[%emt 0:00:01]} Kc6 {[%emt 0:00:01]} 71. Ng2 {[%emt 0:00:01]} Qd1 {[%emt 0:00:02]} 72. Ne3 {[%emt 0:00:01]} Qd8 {[%emt 0:00:01]} 73. Nxg4 {[%emt 0:00:01]} Kb6 {[%emt 0:00:00]} 74. Qf6+ {[%emt 0:00:02]} 1-0